[Event "*** Titled Tuesday 3|2 Blitz"]
[Site "Chess.com"]
[Date "2015.10.06"]
[Round "7"]
[White "AlexanderL"]
[Black "gmjlh"]
[Result "0-1"]
[WhiteElo "2547"]
[BlackElo "2632"]
[TimeControl "180+2"]
[EndTime "12:28:13 PDT"]
[Termination "gmjlh won on time"]

1. d4 {[%clk 0:03:01.9]} 1... Nf6 {[%clk 0:03:00.9]} 2. c4 {[%clk 0:03:02.9]}
2... e6 {[%clk 0:03:02.3]} 3. Nc3 {[%clk 0:03:04.5]} 3... Bb4 {[%clk 0:03:03.9]}
4. Qc2 {[%clk 0:03:06.1]} 4... d5 {[%clk 0:03:04.9]} 5. a3 {[%clk 0:03:07.2]}
5... Bxc3+ {[%clk 0:03:06]} 6. Qxc3 {[%clk 0:03:09.1]} 6... Ne4 {[%clk
0:03:04.6]} 7. Qc2 {[%clk 0:03:07.9]} 7... c5 {[%clk 0:03:05.7]} 8. dxc5 {[%clk
0:03:07.7]} 8... Nc6 {[%clk 0:03:06.9]} 9. cxd5 {[%clk 0:03:08.9]} 9... exd5
{[%clk 0:03:08.7]} 10. Nf3 {[%clk 0:03:07.5]} 10... Qf6 {[%clk 0:03:09.4]} 11.
h4 {[%clk 0:03:08.4]} 11... Bf5 {[%clk 0:02:58.5]} 12. Bg5 {[%clk 0:03:08.2]}
12... Qe6 {[%clk 0:02:58.6]} 13. Qc1 {[%clk 0:02:55.3]} 13... O-O {[%clk
0:02:52.2]} 14. e3 {[%clk 0:02:49.4]} 14... Rfc8 {[%clk 0:02:48.9]} 15. b4
{[%clk 0:02:23.1]} 15... h6 {[%clk 0:02:47.3]} 16. Bf4 {[%clk 0:02:23.4]} 16...
Bh7 {[%clk 0:02:47.6]} 17. Be2 {[%clk 0:02:16]} 17... b6 {[%clk 0:02:46.7]} 18.
b5 {[%clk 0:02:01.6]} 18... Na5 {[%clk 0:02:36.8]} 19. Nd4 {[%clk 0:02:02.3]}
19... Qf6 {[%clk 0:02:37.2]} 20. c6 {[%clk 0:02:03.3]} 20... g5 {[%clk
0:02:28.7]} 21. hxg5 {[%clk 0:02:03.8]} 21... hxg5 {[%clk 0:02:30.6]} 22. Bg3
{[%clk 0:01:58.2]} 22... Re8 {[%clk 0:02:28.6]} 23. a4 {[%clk 0:01:15.9]} 23...
Rac8 {[%clk 0:02:28.1]} 24. Ra3 {[%clk 0:01:13.9]} 24... Bg6 {[%clk 0:02:17.8]}
25. Nf3 {[%clk 0:00:57.5]} 25... Nc4 {[%clk 0:02:09.6]} 26. Bxc4 {[%clk
0:00:50.1]} 26... dxc4 {[%clk 0:02:11.5]} 27. O-O {[%clk 0:00:26.9]} 27... c3
{[%clk 0:02:06.4]} 28. Rd1 {[%clk 0:00:26.9]} 28... Bh5 {[%clk 0:01:36]} 29. Rd5
{[%clk 0:00:15.8]} 29... Bxf3 {[%clk 0:01:29.4]} 30. gxf3 {[%clk 0:00:16.3]}
30... Qxf3 {[%clk 0:01:31.3]} 31. Rxc3 {[%clk 0:00:16.6]} 31... Re6 {[%clk
0:01:01.8]} 32. Rcd3 {[%clk 0:00:08.4]} 32... Rh6 {[%clk 0:01:02.6]} 33. Rd8+
{[%clk 0:00:09.4]} 33... Kh7 {[%clk 0:01:03.9]} 0-1

[Event "*** Titled Tuesday 3|2 Blitz"]
[Site "Chess.com"]
[Date "2015.10.06"]
[Round "7"]
[White "HansCoolNiemann"]
[Black "Baggio95"]
[Result "0-1"]
[WhiteElo "2068"]
[BlackElo "2393"]
[TimeControl "180+2"]
[EndTime "12:28:38 PDT"]
[Termination "Baggio95 won by resignation"]

1. d4 {[%clk 0:03:01.9]} 1... Nf6 {[%clk 0:02:57.9]} 2. c4 {[%clk 0:02:58.9]}
2... c5 {[%clk 0:02:57.3]} 3. d5 {[%clk 0:02:57.4]} 3... e6 {[%clk 0:02:58.8]}
4. Nc3 {[%clk 0:02:57]} 4... exd5 {[%clk 0:03:00.2]} 5. cxd5 {[%clk 0:02:58.9]}
5... d6 {[%clk 0:03:01.8]} 6. Nf3 {[%clk 0:02:59.4]} 6... g6 {[%clk 0:03:03.2]}
7. Bf4 {[%clk 0:03:00.8]} 7... Bg7 {[%clk 0:03:02.3]} 8. Qa4+ {[%clk 0:02:56.9]}
8... Bd7 {[%clk 0:03:02.8]} 9. Qb3 {[%clk 0:02:57.3]} 9... Qc7 {[%clk
0:03:02.1]} 10. e3 {[%clk 0:02:58.2]} 10... O-O {[%clk 0:02:58.1]} 11. h3 {[%clk
0:02:58.7]} 11... Re8 {[%clk 0:02:42.8]} 12. Be2 {[%clk 0:02:58.1]} 12... Ne4
{[%clk 0:02:41.7]} 13. O-O {[%clk 0:02:57]} 13... Nxc3 {[%clk 0:02:29.1]} 14.
bxc3 {[%clk 0:02:58.9]} 14... Bf5 {[%clk 0:02:28.6]} 15. Nd2 {[%clk 0:02:55.1]}
15... Nd7 {[%clk 0:02:27.4]} 16. g4 {[%clk 0:02:51.7]} 16... g5 {[%clk 0:02:22]}
17. Bxg5 {[%clk 0:02:49.4]} 17... Bg6 {[%clk 0:02:23.1]} 18. Bf4 {[%clk
0:02:49.9]} 18... f5 {[%clk 0:02:18.2]} 19. Nc4 {[%clk 0:02:46]} 19... Ne5
{[%clk 0:02:18.1]} 20. Bxe5 {[%clk 0:02:38.5]} 20... Bxe5 {[%clk 0:02:16.1]} 21.
Nxe5 {[%clk 0:02:31.6]} 21... Rxe5 {[%clk 0:02:16.9]} 22. Qc4 {[%clk 0:02:30.9]}
22... Rf8 {[%clk 0:02:11.7]} 23. g5 {[%clk 0:02:29.1]} 23... f4 {[%clk
0:02:10.8]} 24. Bg4 {[%clk 0:02:28.2]} 24... f3 {[%clk 0:01:56.7]} 25. Be6+
{[%clk 0:02:19.2]} 25... Kg7 {[%clk 0:01:57]} 26. Qg4 {[%clk 0:02:20]} 26... Qe7
{[%clk 0:01:48.9]} 27. h4 {[%clk 0:02:19.7]} 27... Re4 {[%clk 0:01:49.6]} 28.
Qg3 {[%clk 0:02:20.1]} 28... h6 {[%clk 0:01:45.1]} 29. Rfb1 {[%clk 0:01:39.8]}
29... b6 {[%clk 0:01:40.1]} 30. Kf1 {[%clk 0:01:39.3]} 30... hxg5 {[%clk
0:01:38.6]} 31. hxg5 {[%clk 0:01:41.2]} 31... Re5 {[%clk 0:01:32.8]} 32. Ke1
{[%clk 0:01:37.1]} 32... Bxb1 {[%clk 0:01:31.3]} 33. Rxb1 {[%clk 0:01:37.3]}
33... Rxg5 {[%clk 0:01:32.4]} 34. Qh3 {[%clk 0:01:32.8]} 34... Rg1+ {[%clk
0:01:10.5]} 35. Kd2 {[%clk 0:01:32.8]} 35... Rxb1 {[%clk 0:01:11.3]} 36. Qg4+
{[%clk 0:01:29]} 36... Kh8 {[%clk 0:01:10]} 37. Bf5 {[%clk 0:01:29.4]} 37... Rh1
{[%clk 0:01:07.2]} 38. Qg6 {[%clk 0:01:28.7]} 38... Qg7 {[%clk 0:01:04.4]} 39.
Qe6 {[%clk 0:01:28.2]} 39... Rh6 {[%clk 0:01:03.9]} 40. Qd7 {[%clk 0:01:26.1]}
40... Qxd7 {[%clk 0:01:04]} 41. Bxd7 {[%clk 0:01:28]} 41... Rh2 {[%clk
0:01:04.9]} 42. Ke1 {[%clk 0:01:28.7]} 42... Rg8 {[%clk 0:01:05.6]} 43. Bf5
{[%clk 0:01:29.2]} 43... Rg1+ {[%clk 0:01:05.2]} 44. Kd2 {[%clk 0:01:30.5]}
44... Rxf2+ {[%clk 0:01:06.5]} 45. Kd3 {[%clk 0:01:32.3]} 45... Rd1+ {[%clk
0:01:05.4]} 46. Ke4 {[%clk 0:01:33]} 46... Rxa2 {[%clk 0:01:02.4]} 47. Kxf3
{[%clk 0:01:33.3]} 47... Rf1+ {[%clk 0:01:03.1]} 48. Ke4 {[%clk 0:01:34.3]}
48... Ra4+ {[%clk 0:01:03.5]} 49. c4 {[%clk 0:01:32.6]} 49... Rxc4+ {[%clk
0:01:03.6]} 50. Kd3 {[%clk 0:01:33.6]} 50... Rxf5 {[%clk 0:01:04.2]} 51. Kxc4
{[%clk 0:01:34.1]} 51... Re5 {[%clk 0:01:04.8]} 52. Kb5 {[%clk 0:01:34.5]} 52...
Rxd5 {[%clk 0:01:05.5]} 53. Kc6 {[%clk 0:01:36]} 53... Rd3 {[%clk 0:01:06.5]}
54. Kb7 {[%clk 0:01:37.9]} 54... c4 {[%clk 0:01:07.7]} 55. Kxa7 {[%clk
0:01:39.5]} 55... c3 {[%clk 0:01:09]} 56. Kxb6 {[%clk 0:01:41.4]} 56... c2
{[%clk 0:01:10.3]} 57. Kc6 {[%clk 0:01:43.3]} 57... c1=Q+ {[%clk 0:01:10.9]} 58.
Kd7 {[%clk 0:01:45.2]} 58... Qxe3 {[%clk 0:01:11.6]} 59. Kd8 {[%clk 0:01:45.7]}
59... d5 {[%clk 0:01:11.9]} 60. Kd7 {[%clk 0:01:47.6]} 60... d4 {[%clk
0:01:12.4]} 61. Kd8 {[%clk 0:01:49.5]} 61... Qe6 {[%clk 0:01:12.8]} 62. Kc7
{[%clk 0:01:50.1]} 62... Rf3 {[%clk 0:01:12.6]} 63. Kb7 {[%clk 0:01:52]} 63...
Rf7+ {[%clk 0:01:12.7]} 64. Kb8 {[%clk 0:01:53.9]} 0-1

[Event "*** Titled Tuesday 3|2 Blitz"]
[Site "Chess.com"]
[Date "2015.10.06"]
[Round "7"]
[White "kikydu96"]
[Black "MFBerna"]
[Result "1-0"]
[WhiteElo "2291"]
[BlackElo "2083"]
[TimeControl "180+2"]
[EndTime "12:28:46 PDT"]
[Termination "kikydu96 won on time"]

1. e4 {[%clk 0:03:01.9]} 1... e5 {[%clk 0:03:00.2]} 2. Nf3 {[%clk 0:03:02]} 2...
Nc6 {[%clk 0:02:58.5]} 3. d4 {[%clk 0:03:01.3]} 3... exd4 {[%clk 0:02:59.1]} 4.
Nxd4 {[%clk 0:03:02.2]} 4... Bc5 {[%clk 0:03:00.1]} 5. Be3 {[%clk 0:03:02.8]}
5... Qf6 {[%clk 0:02:53.9]} 6. Nb5 {[%clk 0:03:03.1]} 6... Bxe3 {[%clk 0:02:54]}
7. fxe3 {[%clk 0:03:03.7]} 7... Kd8 {[%clk 0:02:55.2]} 8. N1c3 {[%clk 0:03:03]}
8... Nge7 {[%clk 0:02:51.7]} 9. Qg4 {[%clk 0:02:54.6]} 9... d6 {[%clk 0:02:49]}
10. Qg3 {[%clk 0:02:53.9]} 10... a6 {[%clk 0:02:48.9]} 11. Na3 {[%clk 0:02:45]}
11... Qe5 {[%clk 0:02:43.8]} 12. Qf3 {[%clk 0:02:33.9]} 12... Be6 {[%clk
0:02:42.8]} 13. O-O-O {[%clk 0:02:33.8]} 13... b5 {[%clk 0:02:37]} 14. Nd5
{[%clk 0:02:34.8]} 14... f5 {[%clk 0:02:30.6]} 15. Nxe7 {[%clk 0:02:20.5]} 15...
Nxe7 {[%clk 0:02:24.7]} 16. exf5 {[%clk 0:02:19.1]} 16... Bd5 {[%clk 0:02:25.2]}
17. Qf4 {[%clk 0:02:00.2]} 17... Qxf4 {[%clk 0:02:21.5]} 18. exf4 {[%clk
0:02:01.2]} 18... Bb7 {[%clk 0:02:11.9]} 19. Bd3 {[%clk 0:01:58.8]} 19... Rf8
{[%clk 0:02:02.2]} 20. c3 {[%clk 0:01:45.5]} 20... Nxf5 {[%clk 0:01:53.3]} 21.
Nc2 {[%clk 0:01:46.5]} 21... Kd7 {[%clk 0:01:49.3]} 22. Rhf1 {[%clk 0:01:39.7]}
22... Bxg2 {[%clk 0:01:46.3]} 23. Rg1 {[%clk 0:01:40]} 23... Bh3 {[%clk
0:01:41.6]} 24. Bxf5+ {[%clk 0:01:39.4]} 24... Bxf5 {[%clk 0:01:43.5]} 25. Rxg7+
{[%clk 0:01:40.3]} 25... Kc8 {[%clk 0:01:42.5]} 26. Re1 {[%clk 0:01:41.2]} 26...
Kb7 {[%clk 0:01:34.6]} 27. Ree7 {[%clk 0:01:40.9]} 27... Rac8 {[%clk 0:01:35.1]}
28. Nd4 {[%clk 0:01:41.5]} 28... Kb6 {[%clk 0:01:21.9]} 29. b4 {[%clk 0:01:34]}
29... Bg6 {[%clk 0:00:28.2]} 30. Ne6 {[%clk 0:01:33.4]} 30... Rfe8 {[%clk
0:00:29.8]} 31. Nxc7 {[%clk 0:01:33.6]} 31... Rxe7 {[%clk 0:00:16.4]} 32. Nd5+
{[%clk 0:01:32.2]} 32... Kb7 {[%clk 0:00:11.9]} 33. Rxe7+ {[%clk 0:01:18]} 33...
Kb8 {[%clk 0:00:13.5]} 34. Kd2 {[%clk 0:01:17]} 34... Re8 {[%clk 0:00:12.6]} 35.
Rd7 {[%clk 0:01:12.1]} 35... Bf5 {[%clk 0:00:10.5]} 36. Rxd6 {[%clk 0:01:12.3]}
36... Ka7 {[%clk 0:00:09.2]} 37. Rf6 {[%clk 0:01:10.8]} 37... Be4 {[%clk
0:00:05.5]} 38. Rxa6+ {[%clk 0:01:08.9]} 38... Kb7 {[%clk 0:00:03.9]} 39. Rb6+
{[%clk 0:01:08.8]} 39... Ka7 {[%clk 0:00:05.4]} 40. Rxb5 {[%clk 0:01:10]} 40...
Rd8 {[%clk 0:00:04.7]} 41. c4 {[%clk 0:01:10.1]} 41... Rf8 {[%clk 0:00:04.1]}
42. Ke3 {[%clk 0:01:11]} 1-0

[Event "*** Titled Tuesday 3|2 Blitz"]
[Site "Chess.com"]
[Date "2015.10.06"]
[Round "7"]
[White "Carolina-moon"]
[Black "Badouuu"]
[Result "0-1"]
[WhiteElo "2037"]
[BlackElo "1966"]
[TimeControl "180+2"]
[EndTime "12:28:58 PDT"]
[Termination "Badouuu won by checkmate"]

1. e4 {[%clk 0:03:01.9]} 1... c5 {[%clk 0:02:59.6]} 2. Nc3 {[%clk 0:03:01.4]}
2... Nc6 {[%clk 0:03:00.5]} 3. Bb5 {[%clk 0:03:02.5]} 3... d6 {[%clk 0:02:58.9]}
4. Bxc6+ {[%clk 0:03:02.6]} 4... bxc6 {[%clk 0:02:59.8]} 5. f4 {[%clk
0:03:00.9]} 5... Nf6 {[%clk 0:02:59.8]} 6. Nf3 {[%clk 0:03:01.5]} 6... Ba6
{[%clk 0:02:59.7]} 7. d3 {[%clk 0:02:59.3]} 7... g6 {[%clk 0:02:57.2]} 8. O-O
{[%clk 0:02:56.4]} 8... Bg7 {[%clk 0:02:58.6]} 9. e5 {[%clk 0:02:49.4]} 9... Nd5
{[%clk 0:02:57]} 10. Ne4 {[%clk 0:02:44.1]} 10... O-O {[%clk 0:02:52]} 11. c4
{[%clk 0:02:39.8]} 11... Nc7 {[%clk 0:02:46.4]} 12. Be3 {[%clk 0:02:21.2]} 12...
Ne6 {[%clk 0:02:41]} 13. Qa4 {[%clk 0:02:17]} 13... Bb7 {[%clk 0:02:37.4]} 14.
Rad1 {[%clk 0:02:09.8]} 14... Qc7 {[%clk 0:02:34.5]} 15. exd6 {[%clk 0:02:03.8]}
15... exd6 {[%clk 0:02:33.6]} 16. f5 {[%clk 0:02:01.6]} 16... gxf5 {[%clk
0:02:31.8]} 17. Neg5 {[%clk 0:01:54.4]} 17... h6 {[%clk 0:02:28.4]} 18. Nh3
{[%clk 0:01:43]} 18... Rfe8 {[%clk 0:02:19]} 19. Nh4 {[%clk 0:01:39.3]} 19...
Nd4 {[%clk 0:02:11.2]} 20. Bxd4 {[%clk 0:01:39.2]} 20... Bxd4+ {[%clk
0:02:13.1]} 21. Kh1 {[%clk 0:01:39.9]} 21... Bc8 {[%clk 0:02:05.1]} 22. Nxf5
{[%clk 0:01:32.9]} 22... Bxf5 {[%clk 0:02:06]} 23. Rxf5 {[%clk 0:01:33.9]} 23...
Re5 {[%clk 0:02:05.6]} 24. Rxe5 {[%clk 0:01:25]} 24... Bxe5 {[%clk 0:02:04.8]}
25. Qc2 {[%clk 0:01:18.7]} 25... Qe7 {[%clk 0:02:01.5]} 26. Qf2 {[%clk
0:01:10.2]} 26... Kg7 {[%clk 0:01:41.6]} 27. Re1 {[%clk 0:01:03.2]} 27... Qf6
{[%clk 0:01:41.8]} 28. Qe2 {[%clk 0:01:00.1]} 28... Bxb2 {[%clk 0:01:39.4]} 29.
Rf1 {[%clk 0:01:00.6]} 29... Qe5 {[%clk 0:01:30.3]} 30. Qf3 {[%clk 0:00:58.6]}
30... Rf8 {[%clk 0:01:24.9]} 31. Nf4 {[%clk 0:00:54.2]} 31... Kh7 {[%clk
0:01:04.7]} 32. Qg4 {[%clk 0:00:40]} 32... Rg8 {[%clk 0:00:58.8]} 33. Qf3 {[%clk
0:00:37.4]} 33... Bd4 {[%clk 0:00:53.5]} 34. Ne2 {[%clk 0:00:22.7]} 34... Rg7
{[%clk 0:00:45.9]} 35. Ng3 {[%clk 0:00:21.3]} 35... f6 {[%clk 0:00:18.9]} 36.
Qxc6 {[%clk 0:00:17.7]} 36... Rxg3 {[%clk 0:00:17.3]} 37. hxg3 {[%clk
0:00:18.1]} 37... Qh5# {[%clk 0:00:18.1]} 0-1

[Event "*** Titled Tuesday 3|2 Blitz"]
[Site "Chess.com"]
[Date "2015.10.06"]
[Round "7"]
[White "kleinebeer98"]
[Black "Goala"]
[Result "0-1"]
[WhiteElo "2260"]
[BlackElo "2165"]
[TimeControl "180+2"]
[EndTime "12:29:11 PDT"]
[Termination "Goala won by resignation"]

1. e4 {[%clk 0:02:48.3]} 1... e6 {[%clk 0:03:00.4]} 2. d4 {[%clk 0:02:48.8]}
2... d5 {[%clk 0:03:02]} 3. Bd3 {[%clk 0:02:48.1]} 3... dxe4 {[%clk 0:02:51.4]}
4. Bxe4 {[%clk 0:02:50]} 4... Nf6 {[%clk 0:02:53.3]} 5. Bf3 {[%clk 0:02:50.2]}
5... c5 {[%clk 0:02:54.8]} 6. Ne2 {[%clk 0:02:46.4]} 6... Nc6 {[%clk 0:02:55.7]}
7. Be3 {[%clk 0:02:37.7]} 7... cxd4 {[%clk 0:02:55.7]} 8. Nxd4 {[%clk
0:02:39.6]} 8... Ne5 {[%clk 0:02:57.2]} 9. O-O {[%clk 0:02:36.2]} 9... Be7
{[%clk 0:02:55.7]} 10. Nd2 {[%clk 0:02:20.6]} 10... O-O {[%clk 0:02:55.6]} 11.
c4 {[%clk 0:02:14]} 11... a6 {[%clk 0:02:39]} 12. Qb3 {[%clk 0:02:06.5]} 12...
Nxf3+ {[%clk 0:02:31.8]} 13. N2xf3 {[%clk 0:02:08.4]} 13... Qc7 {[%clk
0:02:33.7]} 14. Rfe1 {[%clk 0:01:43.3]} 14... e5 {[%clk 0:02:16.8]} 15. Ne2
{[%clk 0:01:28.2]} 15... Bg4 {[%clk 0:02:12.6]} 16. Bb6 {[%clk 0:01:16.2]} 16...
Qd6 {[%clk 0:02:02.2]} 17. c5 {[%clk 0:00:57.1]} 17... Qb8 {[%clk 0:01:55.5]}
18. Ng3 {[%clk 0:00:47.8]} 18... Nd7 {[%clk 0:01:44]} 19. Rac1 {[%clk
0:00:44.1]} 19... Nxb6 {[%clk 0:01:37.4]} 20. cxb6 {[%clk 0:00:34.5]} 20... Be6
{[%clk 0:01:08.2]} 21. Qc3 {[%clk 0:00:28.8]} 21... Bxa2 {[%clk 0:01:08.2]} 22.
Nxe5 {[%clk 0:00:28.2]} 22... Bf6 {[%clk 0:01:09]} 23. Qa5 {[%clk 0:00:22.6]}
23... Be6 {[%clk 0:01:05.9]} 24. f4 {[%clk 0:00:21.6]} 24... Rd8 {[%clk
0:00:58.9]} 25. f5 {[%clk 0:00:21.9]} 25... Rd5 {[%clk 0:00:58.3]} 26. fxe6
{[%clk 0:00:20.6]} 26... Rxa5 {[%clk 0:00:56.9]} 27. exf7+ {[%clk 0:00:22]}
27... Kf8 {[%clk 0:00:58.5]} 28. Nd7+ {[%clk 0:00:23.3]} 28... Kxf7 {[%clk
0:01:00]} 29. Nxb8 {[%clk 0:00:24.8]} 29... Rxb8 {[%clk 0:01:01.9]} 30. Ne4
{[%clk 0:00:23.2]} 30... Bd4+ {[%clk 0:00:46.5]} 31. Kh1 {[%clk 0:00:24.5]}
31... Bxb6 {[%clk 0:00:48.1]} 32. Nd6+ {[%clk 0:00:23.7]} 32... Kg8 {[%clk
0:00:42.6]} 33. Nc8 {[%clk 0:00:22.6]} 33... Bc5 {[%clk 0:00:26.4]} 34. Re8+
{[%clk 0:00:19.8]} 34... Kf7 {[%clk 0:00:28]} 35. Rd8 {[%clk 0:00:18.3]} 35...
Be7 {[%clk 0:00:14.8]} 36. Rd7 {[%clk 0:00:18]} 36... Rxc8 {[%clk 0:00:13.1]}
37. Rf1+ {[%clk 0:00:14.6]} 37... Ke8 {[%clk 0:00:14.1]} 38. Rxb7 {[%clk
0:00:16.5]} 38... Rb5 {[%clk 0:00:14.1]} 39. Re1 {[%clk 0:00:18]} 0-1

[Event "*** Titled Tuesday 3|2 Blitz"]
[Site "Chess.com"]
[Date "2015.10.06"]
[Round "7"]
[White "Schemato"]
[Black "dabee"]
[Result "1/2-1/2"]
[WhiteElo "2187"]
[BlackElo "2344"]
[TimeControl "180+2"]
[EndTime "12:29:18 PDT"]
[Termination "Game drawn by repetition"]

1. c4 {[%clk 0:03:01.9]} 1... c5 {[%clk 0:02:59.2]} 2. g3 {[%clk 0:03:02.7]}
2... Nc6 {[%clk 0:02:59.9]} 3. Bg2 {[%clk 0:03:03.2]} 3... g6 {[%clk 0:03:00]}
4. Nc3 {[%clk 0:03:03.3]} 4... Bg7 {[%clk 0:03:00.9]} 5. Nf3 {[%clk 0:03:01.6]}
5... e6 {[%clk 0:03:01.5]} 6. d3 {[%clk 0:02:59.9]} 6... Nge7 {[%clk 0:03:02.2]}
7. Bg5 {[%clk 0:03:00.6]} 7... h6 {[%clk 0:03:02.2]} 8. Bd2 {[%clk 0:02:57.7]}
8... O-O {[%clk 0:03:02.5]} 9. Rb1 {[%clk 0:02:54.8]} 9... d5 {[%clk 0:03:02.2]}
10. Qc1 {[%clk 0:02:55.5]} 10... Kh7 {[%clk 0:03:01.4]} 11. O-O {[%clk
0:02:56.4]} 11... b6 {[%clk 0:02:59.6]} 12. a3 {[%clk 0:02:56.9]} 12... a5
{[%clk 0:02:54.9]} 13. Rd1 {[%clk 0:02:54.8]} 13... Bb7 {[%clk 0:02:51.9]} 14.
Nb5 {[%clk 0:02:53]} 14... a4 {[%clk 0:02:46.1]} 15. Qc2 {[%clk 0:02:43.6]}
15... Nf5 {[%clk 0:02:41.2]} 16. e3 {[%clk 0:02:38.4]} 16... Qd7 {[%clk
0:02:36.6]} 17. Bc3 {[%clk 0:02:34.6]} 17... d4 {[%clk 0:02:35.4]} 18. exd4
{[%clk 0:02:09.8]} 18... Ncxd4 {[%clk 0:02:33.1]} 19. Nfxd4 {[%clk 0:02:09.5]}
19... Nxd4 {[%clk 0:02:27.9]} 20. Bxd4 {[%clk 0:02:08.1]} 20... Bxd4 {[%clk
0:02:02.3]} 21. Bxb7 {[%clk 0:02:07.2]} 21... Qxb7 {[%clk 0:02:03]} 22. Nxd4
{[%clk 0:02:07]} 22... cxd4 {[%clk 0:02:03.1]} 23. Re1 {[%clk 0:01:54.9]} 23...
Qc6 {[%clk 0:02:00.6]} 24. Re5 {[%clk 0:01:52.9]} 24... f6 {[%clk 0:01:59.6]}
25. Re4 {[%clk 0:01:50.3]} 25... e5 {[%clk 0:02:00]} 26. Qe2 {[%clk 0:01:45]}
26... Rfe8 {[%clk 0:01:44]} 27. Re1 {[%clk 0:01:44.4]} 27... b5 {[%clk
0:01:37.2]} 28. cxb5 {[%clk 0:01:38.2]} 28... Qxb5 {[%clk 0:01:37.7]} 29. f4
{[%clk 0:01:38.9]} 29... Rab8 {[%clk 0:01:34]} 30. fxe5 {[%clk 0:01:34.5]} 30...
fxe5 {[%clk 0:01:33.4]} 31. Rxe5 {[%clk 0:01:18.8]} 31... Rxe5 {[%clk
0:01:30.5]} 32. Qxe5 {[%clk 0:01:20.7]} 32... Qxe5 {[%clk 0:01:30.8]} 33. Rxe5
{[%clk 0:01:22.6]} 33... Rxb2 {[%clk 0:01:31.7]} 34. Re7+ {[%clk 0:01:18.2]}
34... Kg8 {[%clk 0:01:31.5]} 35. Ra7 {[%clk 0:01:17.2]} 35... Rb3 {[%clk
0:01:29.4]} 36. Rxa4 {[%clk 0:01:16.8]} 36... Rxd3 {[%clk 0:01:30.4]} 37. Kf2
{[%clk 0:01:06.5]} 37... Kf7 {[%clk 0:01:29.2]} 38. Ke2 {[%clk 0:01:03.7]} 38...
Re3+ {[%clk 0:01:27]} 39. Kd2 {[%clk 0:01:04.5]} 39... Rb3 {[%clk 0:01:27.7]}
40. Rxd4 {[%clk 0:01:00.2]} 40... Rxa3 {[%clk 0:01:28.3]} 41. Rc4 {[%clk
0:00:29.1]} 41... Ke6 {[%clk 0:01:18.3]} 42. Rc2 {[%clk 0:00:28.9]} 42... Kf5
{[%clk 0:01:17.2]} 43. Ke2 {[%clk 0:00:29.1]} 43... Kg4 {[%clk 0:01:18.2]} 44.
Kf2 {[%clk 0:00:25.9]} 44... Kh3 {[%clk 0:01:19.2]} 45. Rc6 {[%clk 0:00:25.2]}
45... Ra2+ {[%clk 0:00:55.2]} 46. Kf3 {[%clk 0:00:25.6]} 46... Ra3+ {[%clk
0:00:55.7]} 47. Kf2 {[%clk 0:00:25.5]} 47... Ra2+ {[%clk 0:00:56.4]} 48. Kf3
{[%clk 0:00:26.6]} 48... Ra3+ {[%clk 0:00:53.7]} 49. Kf2 {[%clk 0:00:21.3]}
1/2-1/2

[Event "*** Titled Tuesday 3|2 Blitz"]
[Site "Chess.com"]
[Date "2015.10.06"]
[Round "7"]
[White "GGuseinov"]
[Black "Zvonokchess"]
[Result "1-0"]
[WhiteElo "2535"]
[BlackElo "2550"]
[TimeControl "180+2"]
[EndTime "12:29:24 PDT"]
[Termination "GGuseinov won by resignation"]

1. e4 {[%clk 0:02:27.9]} 1... c5 {[%clk 0:03:00.6]} 2. Nf3 {[%clk 0:02:29]} 2...
e6 {[%clk 0:03:01.6]} 3. d4 {[%clk 0:02:30.2]} 3... cxd4 {[%clk 0:03:02.9]} 4.
Nxd4 {[%clk 0:02:32.1]} 4... a6 {[%clk 0:03:04.4]} 5. Nc3 {[%clk 0:02:33.6]}
5... Qc7 {[%clk 0:03:05.1]} 6. g3 {[%clk 0:02:34.5]} 6... Bb4 {[%clk 0:03:03.1]}
7. Bd2 {[%clk 0:02:35.2]} 7... Nf6 {[%clk 0:03:03.9]} 8. Bg2 {[%clk 0:02:35.9]}
8... O-O {[%clk 0:03:05]} 9. O-O {[%clk 0:02:36.9]} 9... Be7 {[%clk 0:03:06.1]}
10. Be3 {[%clk 0:02:36.6]} 10... Nc6 {[%clk 0:03:02.9]} 11. f4 {[%clk
0:02:37.5]} 11... d6 {[%clk 0:03:03.9]} 12. Kh1 {[%clk 0:02:38.7]} 12... Bd7
{[%clk 0:02:52.4]} 13. Nb3 {[%clk 0:02:34.7]} 13... b5 {[%clk 0:02:42.8]} 14. a3
{[%clk 0:02:35.1]} 14... Rac8 {[%clk 0:02:38.2]} 15. g4 {[%clk 0:02:32.3]} 15...
g6 {[%clk 0:02:39.4]} 16. g5 {[%clk 0:02:31.8]} 16... Nh5 {[%clk 0:02:40.2]} 17.
f5 {[%clk 0:02:31.6]} 17... Ne5 {[%clk 0:02:28.6]} 18. f6 {[%clk 0:02:28.3]}
18... Bd8 {[%clk 0:02:29.4]} 19. Nd4 {[%clk 0:02:19.3]} 19... Qb8 {[%clk
0:02:28.8]} 20. Qe1 {[%clk 0:01:57]} 20... Bb6 {[%clk 0:02:25.5]} 21. Rd1 {[%clk
0:01:55.8]} 21... Rc4 {[%clk 0:01:31.5]} 22. Qh4 {[%clk 0:01:52.2]} 22... Rfc8
{[%clk 0:01:29.7]} 23. Nce2 {[%clk 0:01:41.3]} 23... R8c7 {[%clk 0:00:46.4]} 24.
c3 {[%clk 0:01:36.5]} 24... Qf8 {[%clk 0:00:34.5]} 25. Nxe6 {[%clk 0:01:34.1]}
25... Bxe6 {[%clk 0:00:35.8]} 26. Bxb6 {[%clk 0:01:35]} 26... Rd7 {[%clk
0:00:37.2]} 27. Bd4 {[%clk 0:01:36]} 27... a5 {[%clk 0:00:36.5]} 28. Ng3 {[%clk
0:01:35.8]} 28... Nxg3+ {[%clk 0:00:36.1]} 29. hxg3 {[%clk 0:01:36.9]} 29... h5
{[%clk 0:00:37.2]} 30. gxh6 {[%clk 0:01:32.5]} 30... Kh7 {[%clk 0:00:38]} 31.
Rf4 {[%clk 0:01:27]} 31... Qd8 {[%clk 0:00:37.7]} 32. Qg5 {[%clk 0:01:22.1]}
32... b4 {[%clk 0:00:35.3]} 33. axb4 {[%clk 0:01:21]} 33... axb4 {[%clk
0:00:36.2]} 34. Bf1 {[%clk 0:01:20.7]} 34... Rc8 {[%clk 0:00:21.1]} 35. Bb5
{[%clk 0:01:20.9]} 35... Rb7 {[%clk 0:00:07.2]} 36. Ba6 {[%clk 0:01:19.1]} 36...
Qc7 {[%clk 0:00:08.2]} 37. Bxb7 {[%clk 0:01:05.1]} 37... Qxb7 {[%clk 0:00:10.1]}
38. Bxe5 {[%clk 0:01:06.5]} 38... dxe5 {[%clk 0:00:12]} 39. Qxe5 {[%clk
0:01:08.2]} 39... bxc3 {[%clk 0:00:13.1]} 40. bxc3 {[%clk 0:01:07.8]} 40... Qb3
{[%clk 0:00:13.6]} 41. Rc1 {[%clk 0:00:45.4]} 41... Rd8 {[%clk 0:00:14.9]} 42.
Rf2 {[%clk 0:00:42]} 42... Rd3 {[%clk 0:00:15.8]} 43. Qc5 {[%clk 0:00:36.7]}
43... Qa4 {[%clk 0:00:14.9]} 44. Qf8 {[%clk 0:00:32.9]} 44... Qxe4+ {[%clk
0:00:16]} 45. Kh2 {[%clk 0:00:34.4]} 1-0